bitfinex/quotes_SOLUSD_20240808
["timestamp","ask_amount","ask_price","bid_price","bid_amount"]
[1723135717277,16.04380996,160.04,159.99,6.2503]
[1723135717883,6.249,160.03,159.93,6.1361]
[1723135718196,1.56295767,160.03,159.93,6.1361]
[1723135718403,6.2495,160.02,159.97,6.2511]
[1723135718699,6.2497,160.01,159.96,6.2515]
[1723135718898,6.2492,160.02,159.97,6.2511]
[1723135719074,9.79540996,160.04,159.93,6.1361]
[1723135719274,9.79540996,160.04,159.94,1.25032423]
[1723135719474,9.79540996,160.04,160.02,6.2491]
[1723135719684,9.79540996,160.04,159.94,3.59242423]
[1723135719903,9.79540996,160.04,160.02,6.2488]
[1723135720597,9.79540996,160.04,160.01,6.2495]
[1723135721298,9.79540996,160.04,159.94,2.3421]
[1723135721299,9.79540996,160.04,160.0,6.2499]
[1723135721900,9.79540996,160.04,160.01,6.2494]
[1723135722395,9.79540996,160.04,160.03,6.2488]
[1723135722604,9.79540996,160.04,160.02,6.2491]
[1723135722978,9.79540996,160.04,160.01,6.2495]
[1723135723179,9.79540996,160.04,159.99,6.25]
[1723135723488,6.2497,160.01,159.96,6.2512]
[1723135723685,59.96390996,160.04,159.99,6.25]
[1723135723872,43.92,160.01,159.93,6.1361]
[1723135724083,6.2511,159.97,159.93,6.1361]
[1723135724281,1.5632182,160.0,159.93,6.1361]
[1723135724594,1.5632182,160.0,159.89,6.1245]
[1723135724792,21.3273,160.02,159.97,6.2511]
[1723135724992,21.3273,160.02,159.98,6.2507]
[1723135725209,1.56303357,160.01,159.89,6.1245]
[1723135725498,6.2508,159.98,159.94,6.2519]
[1723135725670,1.56331139,159.97,159.89,6.1245]
[1723135725876,1.56331139,159.97,159.94,6.2522]
[1723135726088,15.0781,160.02,159.95,6.2519]
[1723135726089,8.05024632,160.01,159.95,6.2519]
[1723135726273,6.2503,160.0,159.95,6.2519]
[1723135726483,12.73656299,160.01,159.96,6.2513]
[1723135726877,1.56309724,160.0,159.89,6.1245]
[1723135727081,6.25,160.0,159.95,6.2516]
[1723135727277,1.56318255,160.0,159.89,6.1245]
[1723135727495,45.48318255,160.0,159.85,6.6079]
[1723135727700,43.92,159.96,159.85,6.6079]
[1723135727890,1.56400143,159.95,159.85,6.6079]
[1723135728094,1.56400143,159.95,159.8,6.6079]
[1723135728311,6.253,159.93,159.88,6.2546]
[1723135728485,43.92,159.96,159.89,6.2542]
[1723135728486,6.2525,159.94,159.89,6.2542]
[1723135728804,1.56379859,159.94,159.8,6.6079]
[1723135728988,7.81639859,159.94,159.89,6.2539]
[1723135729185,6.2539,159.9,159.85,6.2556]
[1723135729508,1.56411051,159.89,159.85,6.2558]
[1723135730107,1.56411051,159.89,159.86,6.2554]
[1723135730309,58.9317,159.92,159.8,6.6079]
[1723135730486,15.0117,159.92,159.8,6.6079]
[1723135730881,1.56377199,159.91,159.8,6.6079]
[1723135731314,15.0117,159.92,159.88,6.2544]
[1723135731618,6.2535,159.91,159.86,6.2553]
[1723135731819,21.2649,159.92,159.87,6.255]
[1723135732122,6.2535,159.91,159.87,6.255]
[1723135732415,21.2648,159.92,159.87,6.255]
[1723135732599,21.2648,159.92,159.8,6.6079]
[1723135732600,6.2539,159.9,159.85,6.2555]
[1723135732797,6.2543,159.89,159.8,6.6079]
[1723135733031,1.56438747,159.88,159.74,6.5894]
[1723135733320,6.2554,159.87,159.83,6.2566]
[1723135733625,1.56434861,159.86,159.82,6.257]
[1723135733828,1.5644146,159.85,159.74,13.06258079]
[1723135734114,7.8205146,159.85,159.8,6.2577]
[1723135734691,1.5644146,159.85,159.74,6.5894]
[1723135734919,17.20270658,159.87,159.74,6.5894]
[1723135735118,6.2566,159.84,159.78,6.2585]
[1723135735305,1.56481426,159.83,159.74,6.5894]
[1723135735620,7.82141426,159.83,159.78,6.2582]
[1723135736120,7.82141426,159.83,159.74,6.5894]
[1723135736121,6.2571,159.82,159.77,6.2587]
[1723135736419,7.82241618,159.81,159.75,6.2594]
[1723135736623,6.258,159.8,159.7,6.3198]
[1723135736814,15.322,159.82,159.7,6.3198]
[1723135737331,15.322,159.82,159.71,20.0]
[1723135737511,15.322,159.82,159.79,6.2578]
[1723135737713,15.322,159.82,159.81,6.2574]
[1723135737891,15.322,159.82,159.71,20.0]
[1723135738087,15.322,159.82,159.8,6.2578]
[1723135738517,16.6364,159.87,159.71,20.0]
[1723135738722,16.6364,159.87,159.81,6.2573]
[1723135738935,16.6364,159.87,159.85,6.2558]
[1723135739104,16.6364,159.87,159.71,20.0]
[1723135739294,67.02217836,159.92,159.74,43.92]
[1723135739499,67.02217836,159.92,159.84,6.2559]
[1723135739500,6.254,159.9,159.84,6.2559]
[1723135739730,6.254,159.9,159.85,6.2557]
[1723135739926,23.10217836,159.92,159.85,6.2557]
[1723135740223,6.254,159.9,159.85,6.2556]
[1723135740524,23.10217836,159.92,159.76,6.1693]
[1723135740713,6.2544,159.89,159.84,6.2562]
[1723135740912,23.10217836,159.92,159.84,6.2562]
[1723135740913,6.2541,159.9,159.84,6.2562]
[1723135741306,6.2541,159.9,159.85,6.2556]
[1723135741622,6.2541,159.9,159.84,6.2562]
[1723135742229,23.10217836,159.92,159.77,20.0]
[1723135742230,67.02217836,159.92,159.77,20.0]
[1723135742414,6.255,159.88,159.77,20.0]
[1723135742605,6.2543,159.89,159.77,20.0]
[1723135742802,7.81905715,159.88,159.83,6.2566]
[1723135743132,6.2554,159.86,159.81,6.2573]
[1723135743321,1.56459427,159.85,159.81,6.2573]
[1723135743621,1.56457497,159.87,159.76,6.1693]
[1723135743828,1.56457497,159.87,159.82,6.257]
[1723135744029,7.81967497,159.87,159.81,6.2573]
[1723135744229,1.56457497,159.87,159.79,6.2578]
[1723135744838,6.2558,159.85,159.79,6.2578]
[1723135745126,7.82106635,159.84,159.79,6.2581]
[1723135745326,6.2563,159.84,159.79,6.2581]
[1723135745504,6.2559,159.85,159.79,6.2581]
[1723135745839,15.5465,159.87,159.6,301.82]
[1723135745840,6.3035,159.83,159.68,8.7498]
[1723135746004,6.2575,159.81,159.76,6.259]
[1723135746708,7.82326809,159.8,159.74,6.2598]
[1723135747003,7.86874128,159.83,159.68,6.4077]
[1723135747202,6.3035,159.83,159.79,6.2578]
[1723135747802,6.3035,159.83,159.68,7.65953054]
[1723135748019,6.3035,159.83,159.69,20.0]
[1723135748206,12.5601,159.83,159.78,6.2583]
[1723135748525,6.3035,159.83,159.79,6.258]
[1723135748714,6.3035,159.83,159.78,6.2585]
[1723135749133,12.5602,159.83,159.78,6.2585]
[1723135750037,6.3035,159.83,159.69,20.0]
[1723135750332,6.3035,159.83,159.81,6.2574]
[1723135750534,6.52533844,159.86,159.82,6.257]
[1723135750707,22.2068,159.87,159.84,6.2559]
[1723135750910,22.2068,159.87,159.82,6.2566]
[1723135751211,6.2566,159.83,159.78,6.2585]
[1723135751707,6.2562,159.84,159.79,6.2581]
[1723135751909,1.56479803,159.85,159.8,6.2577]
[1723135752219,1.56479803,159.85,159.69,20.0]
[1723135752220,1.5646444,159.84,159.69,20.0]
[1723135752418,22.2068,159.87,159.69,21.2517755]
[1723135752731,15.5465,159.87,159.71,43.92]
[1723135752929,15.5465,159.87,159.72,20.0]
[1723135753231,6.2567,159.83,159.78,6.2585]
[1723135753442,6.2562,159.85,159.8,6.2576]
[1723135753604,6.2559,159.85,159.72,20.0]
[1723135753932,6.2559,159.85,159.8,6.2574]
[1723135754435,6.2554,159.86,159.81,6.2573]
[1723135754632,6.2558,159.85,159.81,6.2573]
[1723135754929,1.56458382,159.85,159.79,6.2581]
[1723135755129,6.2563,159.84,159.79,6.2581]
[1723135755337,45.0,159.83,159.79,6.2581]
[1723135755835,45.0,159.83,159.71,21.25177281]
[1723135756038,51.2566,159.83,159.78,6.2585]
[1723135756733,45.0,159.83,159.71,20.0]
[1723135757038,45.0,159.83,159.79,6.2581]
[1723135757209,45.0,159.83,159.8,6.2577]
[1723135757810,1.56466421,159.82,159.7,6.574]
[1723135758128,6.2574,159.81,159.77,6.2589]
[1723135758336,45.0,159.8,159.76,6.2593]
[1723135758628,45.0,159.8,159.75,6.2597]
[1723135758838,45.0,159.8,159.74,6.26]
[1723135758839,15.7888,159.78,159.74,6.26]
[1723135759022,45.0,159.77,159.76,6.2593]
[1723135759429,45.0,159.77,159.66,9.01794325]
[1723135759633,45.0,159.77,159.73,6.2602]
[1723135759820,45.0,159.77,159.74,6.2601]
[1723135760015,45.0,159.77,159.76,6.2593]
[1723135761028,15.7888,159.83,159.8,6.2577]
[1723135761225,15.7888,159.83,159.68,45.17180712]
[1723135761431,15.7888,159.83,159.81,6.2573]
[1723135761633,15.7888,159.83,159.82,6.257]
[1723135761824,15.7888,159.83,159.81,6.2572]
[1723135762417,15.7888,159.83,159.82,6.257]
[1723135762613,15.7888,159.87,159.75,7.76013683]
[1723135762923,1.56423626,159.86,159.76,20.0]
[1723135763238,15.7888,159.87,159.83,6.2566]
[1723135763424,22.0439,159.87,159.82,6.2569]
[1723135763622,1.56434723,159.86,159.71,6.2949]
[1723135763826,15.7888,159.87,159.71,6.2949]
[1723135764031,6.2571,159.82,159.77,6.2586]
[1723135764237,6.2584,159.79,159.71,6.2949]
[1723135764427,45.0,159.78,159.74,6.2601]
[1723135764632,51.2586,159.78,159.74,6.2601]
[1723135764869,45.0,159.78,159.74,6.2601]
[1723135765024,6.2594,159.76,159.71,6.2612]
[1723135765342,46.56546632,159.75,159.67,6.6098]
[1723135765547,45.0,159.75,159.74,6.2601]
[1723135765717,45.0,159.75,159.72,6.2606]
[1723135765917,46.56532029,159.76,159.67,6.6098]
[1723135766119,45.0,159.76,159.74,6.2598]
[1723135766324,45.0,159.76,159.74,6.2601]
[1723135766550,46.56527103,159.76,159.74,6.2601]
[1723135766937,46.56527103,159.76,159.67,6.6098]
[1723135767347,45.0,159.76,159.67,6.6098]
[1723135767542,1.56551325,159.75,159.72,6.2608]
[1723135768119,1.56551325,159.75,159.67,6.6098]
[1723135768525,1.56551325,159.75,159.72,6.2608]
[1723135768724,1.56551325,159.75,159.73,6.2605]
[1723135769143,15.9204,159.77,159.67,6.6098]
[1723135769524,15.9204,159.77,159.74,6.26]
[1723135769748,15.9204,159.77,159.73,6.2604]
[1723135769940,15.9204,159.77,159.74,6.26]
[1723135770143,15.9204,159.77,159.73,6.2604]
[1723135770652,46.56535988,159.76,159.72,6.2608]
[1723135771244,46.56535988,159.76,159.73,6.2604]
[1723135771448,45.0,159.76,159.73,6.2604]
[1723135771744,45.0,159.76,159.74,6.2601]
[1723135771952,1.56528007,159.75,159.62,6.1605]
[1723135772136,7.82508007,159.75,159.7,6.2616]
[1723135772337,45.0,159.74,159.7,6.2616]
[1723135772930,15.9204,159.77,159.62,6.1605]
[1723135773133,15.9204,159.77,159.63,1.25221135]
[1723135773334,15.9204,159.77,159.63,21.25221135]
[1723135773930,22.1794,159.77,159.72,6.2606]
[1723135774238,45.0,159.76,159.73,6.2603]
[1723135774737,45.0,159.76,159.63,20.0]
[1723135774738,46.565244,159.76,159.63,20.0]
[1723135774937,45.0,159.76,159.72,6.2608]
[1723135775141,45.0,159.76,159.63,20.0]
[1723135775142,45.0,159.76,159.74,6.2601]
[1723135775338,45.0,159.76,159.75,6.2597]
[1723135775749,15.9204,159.77,159.66,1.25206424]
[1723135775944,15.9204,159.77,159.75,6.2594]
[1723135776468,15.9204,159.77,159.75,6.2596]
[1723135776865,15.9204,159.77,159.64,1.25199257]
[1723135777158,1.56518376,159.76,159.62,6.1605]
[1723135777356,6.2598,159.75,159.7,6.2614]
[1723135777838,6.2602,159.74,159.69,6.262]
[1723135778037,45.0,159.73,159.69,6.262]
[1723135778238,51.2606,159.73,159.69,6.262]
[1723135778764,51.2606,159.73,159.68,6.2624]
[1723135779262,51.2606,159.73,159.69,6.262]
[1723135779463,45.0,159.73,159.62,6.1605]
[1723135779759,51.2609,159.73,159.62,6.1605]
[1723135780058,6.2609,159.72,159.68,6.2624]
[1723135780261,45.0,159.71,159.68,6.2624]
[1723135780762,45.0,159.71,159.62,7.41308397]
[1723135780969,45.0,159.71,159.62,6.1605]
[1723135781140,45.0,159.71,159.69,6.262]
[1723135781339,45.0,159.71,159.62,7.41297131]
[1723135781552,45.0,159.72,159.62,6.1605]
[1723135781754,51.261,159.72,159.68,6.2622]
[1723135781937,24.36286833,159.71,159.58,0.8297811]
[1723135782138,6.2625,159.69,159.64,6.2637]
[1723135782443,45.0,159.68,159.66,6.2629]
[1723135782657,45.0,159.68,159.66,6.2632]
[1723135782857,45.0,159.69,159.66,6.2632]
[1723135783052,45.0,159.69,159.67,6.2628]
[1723135783358,45.0,159.7,159.67,6.2628]
[1723135783554,45.0,159.7,159.66,6.2631]
[1723135783857,16.1666,159.71,159.58,2.08248243]
[1723135784065,6.34,159.75,159.71,6.261]
[1723135784241,15.1241,159.76,159.64,6.2162]
[1723135784436,15.1241,159.76,159.65,1.25221268]
[1723135784646,15.1241,159.76,159.64,6.2162]
[1723135784848,6.2602,159.74,159.69,6.262]
[1723135785263,6.2602,159.74,159.58,0.8297811]
[1723135785264,6.262,159.7,159.65,6.2633]
[1723135785639,45.0,159.69,159.65,6.2633]
[1723135786054,51.2621,159.69,159.64,6.264]
[1723135786451,51.2621,159.69,159.65,6.2635]
[1723135786753,45.0,159.69,159.65,6.2635]
[1723135787062,23.85977179,159.68,159.58,0.8297811]
[1723135787251,45.0,159.67,159.58,0.8297811]
[1723135787856,1.5661447,159.66,159.58,0.8297811]
[1723135789367,6.2637,159.65,159.58,0.8297811]
[1723135789676,46.56636918,159.64,159.58,0.8297811]
[1723135789849,45.0,159.64,159.58,0.8297811]
[1723135790462,1.56617578,159.63,159.58,0.8297811]
[1723135790871,6.266,159.59,159.58,0.8297811]
[1723135791164,45.0,159.59,159.58,0.8297811]
[1723135791365,46.56699025,159.59,159.58,0.8297811]
[1723135791869,45.0,159.59,159.58,0.8297811]
[1723135792056,52.83287243,159.59,159.58,0.8297811]
[1723135792256,46.56687243,159.59,159.58,0.8297811]
[1723135792850,46.56695321,159.59,159.58,0.8297811]
[1723135793060,22.34450145,159.64,159.58,0.8297811]
[1723135793261,6.2645,159.63,159.58,7.0960811]
[1723135793470,1.56663536,159.62,159.58,0.8297811]
[1723135793866,15.8249,159.64,159.58,0.8297811]
[1723135794056,17.39124552,159.64,159.58,0.8297811]
[1723135794254,15.8249,159.64,159.58,0.8297811]
[1723135795067,6.2651,159.62,159.58,0.8297811]
[1723135795260,6.2651,159.62,159.42,0.8297811]
[1723135795261,15.6657,159.59,159.42,0.8297811]
[1723135795461,15.6657,159.59,159.47,6.2768]
[1723135795462,15.3297,159.59,159.47,6.2768]
[1723135795669,15.3297,159.59,159.57,6.2665]
[1723135795846,15.3297,159.59,159.47,7.53040023]
[1723135796047,45.0,159.58,159.57,6.2667]
[1723135796467,45.0,159.58,159.57,6.2668]
[1723135796768,51.2667,159.58,159.5,50.0]
[1723135797066,45.0,159.58,159.5,50.0]
[1723135797451,45.0,159.58,159.56,6.2672]
[1723135797868,45.0,159.58,159.57,6.2668]
[1723135798075,6.2649,159.62,159.57,6.2667]
[1723135798255,6.2653,159.61,159.5,50.0]
[1723135798574,6.2663,159.59,159.5,50.0]
[1723135798750,6.2661,159.59,159.5,50.0]
[1723135799369,45.0,159.58,159.5,50.0]
[1723135799974,45.0,159.59,159.5,50.0]
[1723135800360,21.9373,159.63,159.51,1.25353777]
[1723135800649,15.9495,159.67,159.52,1.25324655]
[1723135800859,17.51555671,159.67,159.51,35.6201]
[1723135801065,6.2644,159.64,159.51,35.6201]
[1723135801267,1.56639125,159.63,159.51,35.6201]
[1723135801467,1.56639125,159.62,159.51,35.6201]
[1723135802049,6.2658,159.6,159.51,6.1847]
[1723135802250,7.83191496,159.61,159.51,6.1847]
[1723135802451,6.2653,159.61,159.51,6.1847]
[1723135802877,6.2657,159.6,159.51,6.1847]
[1723135803055,1.56692938,159.64,159.51,6.1847]
[1723135803254,15.9495,159.67,159.51,7.43809136]
[1723135803460,6.2636,159.66,159.51,7.43809136]
[1723135803756,1.56633302,159.65,159.51,6.1847]
[1723135803956,15.9495,159.67,159.51,6.1847]
[1723135804161,6.2649,159.62,159.51,6.1847]
[1723135804687,6.2641,159.64,159.51,6.1847]
[1723135805688,15.9495,159.67,159.52,21.25320074]
[1723135805854,22.2124,159.67,159.52,21.25320074]
[1723135806063,1.56619977,159.66,159.52,20.0]
[1723135806573,15.9495,159.67,159.52,20.0]
[1723135806753,15.9495,159.67,159.51,6.1847]
[1723135806955,6.2676,159.55,159.5,50.0]
[1723135807154,1.5673008,159.54,159.5,50.0]
[1723135807671,6.2661,159.59,159.5,50.0]
[1723135807855,66.3903,159.6,159.5,50.0]
[1723135807856,45.0,159.58,159.5,50.0]
[1723135808062,45.0,159.59,159.5,50.0]
[1723135808484,46.56707896,159.59,159.5,50.0]
[1723135808666,6.2666,159.58,159.5,50.0]
[1723135808865,45.0,159.57,159.5,50.0]
[1723135809069,45.0,159.59,159.5,50.0]
[1723135810286,46.56698578,159.59,159.5,50.0]
[1723135810469,45.0,159.59,159.5,50.0]
[1723135811361,51.2662,159.59,159.5,50.0]
[1723135811667,1.56717157,159.58,159.5,50.0]
[1723135812065,6.2678,159.55,159.5,50.0]
[1723135812273,52.83557977,159.54,159.5,50.0]
[1723135812485,45.0,159.54,159.5,50.0]
[1723135813186,23.66139943,159.53,159.5,33.3334]
[1723135813392,22.0939,159.53,159.5,33.3334]
[1723135813555,45.0,159.54,159.5,33.3334]
[1723135814677,44.12,159.52,159.5,33.3334]
[1723135816884,50.3888,159.52,159.5,33.3334]
[1723135817077,22.5672,159.51,159.42,0.8297811]
[1723135817276,44.12,159.47,159.42,0.8297811]
[1723135817971,50.3908,159.47,159.42,7.1023811]
[1723135818176,44.12,159.47,159.42,0.8297811]
[1723135818383,6.27,159.49,159.42,7.1021811]
[1723135818687,22.5672,159.51,159.43,6.2723]
[1723135818867,6.2704,159.48,159.42,7.1022811]
[1723135819067,6.272,159.44,159.42,0.8297811]
[1723135819270,38.2405,159.51,159.42,0.8297811]
[1723135819271,44.12,159.45,159.42,0.8297811]
[1723135819468,6.2723,159.43,159.42,0.00408163]
[1723135820080,44.12,159.41,159.29,6.2427]
[1723135820287,6.2743,159.38,159.32,6.2766]
[1723135820484,6.2732,159.41,159.29,6.2427]
[1723135820875,6.2732,159.41,159.35,6.2754]
[1723135821071,7.84248691,159.4,159.34,6.2757]
[1723135821271,6.2736,159.4,159.34,6.2757]
[1723135821473,7.84260603,159.4,159.34,5.7757]
[1723135821765,44.12,159.38,159.26,0.8297811]
[1723135821987,7.84439731,159.37,159.31,6.277]
[1723135822167,1.56939731,159.37,159.26,0.8297811]
[1723135822485,1.56939731,159.37,159.31,6.277]
[1723135822670,44.12,159.38,159.32,6.2764]
[1723135822873,6.2747,159.37,159.31,6.277]
[1723135823065,44.12,159.38,159.26,0.8297811]
[1723135823267,1.56911198,159.37,159.26,0.8297811]
[1723135823569,6.2752,159.36,159.26,0.8297811]
[1723135823764,6.55502302,159.4,159.38,6.2739]
[1723135823985,28.579,159.47,159.41,6.273]
[1723135824194,6.0051,159.53,159.38,6.1974]
[1723135824367,6.0051,159.53,159.39,20.0]
[1723135824687,6.0051,159.53,159.38,6.1974]
[1723135825095,44.12,159.51,159.38,6.1974]
[1723135825296,44.12,159.51,159.28,44.12]
[1723135825469,44.12,159.47,159.29,42.2741]
[1723135825665,6.2712,159.46,159.29,42.2741]
[1723135825893,1.56853896,159.45,159.29,42.2741]
[1723135826096,6.2724,159.43,159.29,42.2741]
[1723135826394,1.56856476,159.42,159.29,42.2741]
[1723135826603,51.3361,159.57,159.3,1.25485181]
[1723135826776,6.2703,159.48,159.3,1.25485181]
[1723135827092,6.2713,159.46,159.29,66.3941]
[1723135827275,6.273,159.42,159.29,22.2741]
[1723135827471,1.56878409,159.41,159.29,22.2741]
[1723135828467,6.54676321,159.47,159.45,6.2712]
[1723135828692,50.3891,159.52,159.32,44.12]
[1723135829011,50.66457418,159.52,159.33,21.25430133]
[1723135829376,6.2711,159.47,159.33,21.25430133]
[1723135829582,6.27,159.49,159.33,20.0]
[1723135829804,44.12,159.46,159.25,6.2228]
[1723135830006,15.4998,159.44,159.25,6.2228]
[1723135830203,1.56888867,159.43,159.25,6.2228]
[1723135830410,6.2727,159.43,159.25,6.2228]
[1723135830708,6.2722,159.44,159.39,6.2738]
[1723135831006,45.6885098,159.46,159.26,44.9497811]
[1723135831209,1.5685232,159.45,159.27,20.0]
[1723135831405,45.68852566,159.46,159.27,20.0]
[1723135831602,44.12,159.46,159.27,20.0]
[1723135832184,21.56831141,159.45,159.26,44.9497811]
[1723135832413,15.6798,159.44,159.26,0.8297811]
[1723135832588,1.5688449,159.43,159.26,0.8297811]
[1723135832787,1.56891577,159.42,159.35,6.2754]
[1723135833011,44.12,159.46,159.26,0.8297811]
[1723135833012,15.4998,159.49,159.36,1.25497376]
[1723135833209,15.4998,159.49,159.26,44.9497811]
[1723135833418,6.2715,159.45,159.4,6.2734]
[1723135833589,6.2715,159.45,159.26,44.9497811]
[1723135833784,6.2715,159.45,159.26,64.9497811]
[1723135834010,6.2715,159.45,159.27,65.0]
[1723135834202,15.4998,159.49,159.27,65.0]
[1723135834499,60.5094,159.54,159.34,44.12]
[1723135834814,8.1125189,159.53,159.35,20.0]
[1723135835010,44.12,159.5,159.35,20.0]
[1723135835316,17.24339862,159.49,159.31,21.3291]
[1723135835516,44.12,159.5,159.32,1.25468883]
[1723135835685,1.56796873,159.51,159.31,21.3291]
[1723135836390,9.83193218,159.47,159.31,21.3291]
[1723135836817,44.12,159.52,159.32,21.25431114]
[1723135836997,6.27,159.49,159.32,20.0]
[1723135837199,9.83097836,159.51,159.32,20.0]
[1723135837533,9.83097836,159.51,159.34,6.1344]
[1723135837720,6.2684,159.53,159.35,21.25406949]
[1723135838014,6.271,159.47,159.35,20.0]
[1723135838618,6.2724,159.43,159.34,6.1344]
[1723135838815,16.1007999,159.49,159.34,6.1344]
[1723135839019,45.0,159.48,159.34,6.1344]
[1723135839199,9.8304999,159.49,159.34,6.1344]
[1723135839716,53.9504999,159.49,159.34,6.1344]
[1723135839923,6.2718,159.45,159.34,6.1344]
[1723135840103,1.56820507,159.44,159.34,6.1344]
[1723135840304,6.2724,159.43,159.34,6.1344]
[1723135840503,44.12,159.46,159.34,6.1344]
[1723135840811,51.2718,159.45,159.4,6.2731]
[1723135841018,1.56829632,159.44,159.39,6.2738]
[1723135841232,1.56829632,159.44,159.38,6.2742]
[1723135841409,45.0,159.45,159.39,6.2736]
[1723135841717,45.0,159.45,159.34,6.1344]
[1723135841909,7.8406863,159.44,159.34,6.1344]
[1723135842232,53.9504999,159.49,159.34,6.1344]
[1723135842434,9.8304999,159.49,159.35,1.25472801]
[1723135842595,9.8304999,159.49,159.36,1.2542152]
[1723135842795,37.5973,159.61,159.38,6.5773]
[1723135843017,9.82662245,159.53,159.39,1.25389406]
[1723135843221,9.82662245,159.53,159.4,1.25377166]
[1723135843520,6.2677,159.55,159.4,21.25377166]
[1723135843730,9.82551224,159.54,159.4,21.25377166]
[1723135843930,16.09351224,159.54,159.4,21.25377166]
[1723135844123,9.82551224,159.54,159.4,21.25377166]
[1723135844324,9.82551224,159.54,159.4,1.25377166]
[1723135844534,9.82551224,159.54,159.41,21.8476]
[1723135844733,15.6642,159.6,159.42,21.25357276]
[1723135844734,44.12,159.6,159.42,21.25357276]
[1723135845037,6.293,159.65,159.43,44.12]
[1723135845038,16.0901283,159.59,159.43,44.12]
[1723135845340,6.2665,159.58,159.44,20.0]
[1723135845634,9.8237283,159.59,159.45,1.25353993]
[1723135845836,9.8237283,159.59,159.46,1.25340101]
[1723135846425,9.8237283,159.59,159.45,6.6537]
[1723135846744,50.65826316,159.64,159.47,15.2572]
[1723135846948,9.823728,159.65,159.48,27.90674033]
[1723135847241,9.823728,159.65,159.5,26.225]
[1723135847454,6.53616359,159.68,159.51,65.37267191]
[1723135847613,60.2001623,159.73,159.52,46.25256474]
[1723135847814,6.2616,159.71,159.54,6.225]
[1723135848011,6.261,159.72,159.55,21.25262147]
[1723135848235,6.2614,159.71,159.55,21.25262147]
[1723135848538,6.2618,159.7,159.55,21.25262147]
[1723135848726,53.9396623,159.73,159.55,21.25262147]
[1723135848925,6.2609,159.72,159.56,15.1282]
[1723135849240,6.2609,159.72,159.57,21.25249877]
[1723135849437,6.2609,159.72,159.58,1.25247712]
[1723135849641,6.2614,159.71,159.58,1.25247712]
[1723135849948,6.2609,159.72,159.58,1.25247712]
[1723135850137,6.2613,159.71,159.58,1.25247712]
[1723135850716,6.2609,159.72,159.58,1.25247712]
[1723135851348,16.0801623,159.73,159.58,1.25247712]
[1723135851517,6.2614,159.71,159.58,1.25247712]
[1723135851713,45.0,159.7,159.58,1.25247712]
[1723135852655,45.0,159.7,159.57,20.0]
[1723135853032,45.0,159.7,159.57,21.25262019]
[1723135853548,16.0805623,159.73,159.58,1.25259989]
[1723135854149,9.8196623,159.73,159.58,1.25259989]
[1723135854652,6.261,159.72,159.58,1.25259989]
[1723135854978,45.0,159.71,159.58,1.25259989]
[1723135855247,45.0,159.71,159.59,6.5551]
[1723135855447,45.0,159.71,159.6,1.25261062]
[1723135855951,51.2613,159.71,159.6,1.25261062]
[1723135856123,51.2613,159.71,159.61,1.25260767]
[1723135856424,51.2614,159.71,159.59,6.5551]
[1723135857148,45.0,159.71,159.6,1.25261549]
[1723135857319,9.8196623,159.73,159.61,17.14080691]
[1723135857719,9.8196623,159.73,159.61,15.8882]
[1723135857720,6.2614,159.71,159.61,15.8882]
[1723135858247,51.94756915,159.7,159.61,15.8882]
[1723135858751,45.0,159.69,159.61,15.8882]
[1723135860632,16.0802623,159.73,159.61,17.14075386]
[1723135861236,9.8196623,159.73,159.61,15.8882]
[1723135861443,50.381,159.72,159.61,15.8882]
[1723135862042,9.8196623,159.73,159.61,17.14076901]
[1723135862245,6.2575,159.81,159.64,15.5422]